bitfinex/quotes_ETHUSD_20250529
["timestamp","ask_amount","ask_price","bid_price","bid_amount"]
[1748486154383,9.2302,2772.3,2770.9,3.60888481]
[1748486154599,4.38628478,2772.2,2771.0,8.0]
[1748486154796,3.60786354,2771.8,2771.0,3.60870557]
[1748486155082,1.4402,2771.6,2770.7,8.0]
[1748486155286,3.6084713,2771.3,2770.7,8.0]
[1748486155593,1.4402,2771.6,2770.6,3.60932649]
[1748486155915,1.4402,2771.6,2770.7,3.60917437]
[1748486156219,1.4402,2771.6,2770.6,8.0]
[1748486156220,3.60856196,2771.2,2770.6,8.0]
[1748486156406,3.60856196,2771.2,2769.6,3.28837184]
[1748486156407,3.60916065,2770.8,2769.6,3.28837184]
[1748486156592,0.3608562,2771.2,2769.8,3.61036897]
[1748486156913,3.60904236,2770.9,2770.2,3.60980018]
[1748486157114,1.4402,2771.2,2769.4,3.61089044]
[1748486157329,3.60867525,2771.1,2769.6,8.0]
[1748486157515,1.4402,2771.2,2769.1,1.5511]
[1748486157516,1.4402,2770.9,2769.1,1.5511]
[1748486157727,4.15832621,2771.4,2769.8,3.61024483]
[1748486157728,1.4402,2770.1,2769.8,3.61024483]
[1748486157906,1.4402,2770.7,2769.3,1.73727184]
[1748486158104,1.4402,2770.7,2769.0,3.61141206]
[1748486158351,1.4402,2770.7,2769.9,3.61022034]
[1748486158637,1.4402,2770.7,2769.9,8.0]
[1748486158840,1.4402,2770.7,2768.0,8.8244154]
[1748486159148,1.4402,2770.7,2769.0,8.0]
[1748486159344,1.43243495,2770.7,2770.1,3.6099708]
[1748486159555,1.43243495,2770.7,2769.6,8.0]
[1748486159556,1.43243495,2770.7,2770.2,3.60976655]
[1748486159828,1.43243495,2770.7,2770.1,3.60995285]
[1748486160196,1.43243495,2770.7,2770.0,3.6101083]
[1748486160390,1.43243495,2770.7,2770.1,3.60997797]
[1748486160631,5.04174302,2770.7,2770.0,3.61000165]
[1748486160831,5.04174302,2770.7,2769.6,8.0]
[1748486160832,1.43243495,2770.7,2769.6,8.0]
[1748486161034,1.43243495,2770.7,2769.7,3.61049933]
[1748486161208,1.43243495,2770.7,2770.6,11.60932649]
[1748486161539,2.25,2771.1,2771.0,11.60880548]
[1748486161750,11.39712279,2772.3,2771.2,3.60854503]
[1748486161751,7.79,2772.3,2771.2,3.60854503]
[1748486161899,0.30764224,2772.2,2771.3,8.0]
[1748486162233,0.30764224,2772.2,2771.4,3.60828462]
[1748486162442,1.4818,2772.1,2770.9,1.4504]
[1748486162640,0.30764224,2772.0,2771.7,3.6078615]
[1748486162954,0.30764224,2772.0,2771.6,3.60799587]
[1748486163091,0.30764224,2772.0,2771.4,8.0]
[1748486163297,0.30764224,2772.0,2770.2,3.60978304]
[1748486163298,1.4766,2771.9,2769.9,3.24967184]
[1748486163493,1.4766,2771.5,2769.5,1.5124]
[1748486163692,1.4766,2770.5,2770.1,3.60995493]
[1748486163945,1.46973753,2770.5,2770.2,8.0]
[1748486164143,1.46973753,2770.5,2768.2,1.8813925]
[1748486164323,1.46973753,2770.5,2768.1,1.562]
[1748486164324,9.74164679,2770.4,2768.1,1.562]
[1748486164520,9.74164679,2770.4,2768.7,3.61170717]
[1748486164521,3.61022156,2770.0,2768.7,3.61170717]
[1748486164694,0.55,2770.2,2768.1,1.562]
[1748486164896,3.60997797,2770.1,2768.3,3.6122233]
[1748486165144,3.61126466,2769.2,2768.4,3.61210202]
[1748486165314,3.61126466,2769.2,2767.7,1.73727184]
[1748486165315,3.97236437,2769.2,2767.7,3.61310835]
[1748486165516,3.97236437,2769.2,2767.9,3.61281454]
[1748486165517,3.61191158,2768.7,2767.9,3.61281454]
[1748486165695,0.36112647,2769.2,2767.5,3.61336946]
[1748486166063,0.55,2769.5,2768.0,3.61270538]
[1748486166208,0.55,2769.5,2768.2,8.0]
[1748486166209,3.61162767,2768.9,2768.2,8.0]
[1748486166397,3.24909004,2768.9,2768.2,3.61243848]
[1748486166594,3.61128735,2769.1,2768.2,3.61243848]
[1748486166825,0.55,2769.5,2768.0,1.73727184]
[1748486166826,2.25,2769.5,2768.0,1.73727184]
[1748486167137,2.25,2769.5,2768.5,3.61195314]
[1748486167138,3.61125963,2769.2,2768.5,3.61195314]
[1748486167314,1.5657,2769.3,2768.4,3.61214817]
[1748486167315,3.61128921,2769.1,2768.4,3.61214817]
[1748486167502,3.61118238,2769.2,2768.5,11.61204972]
[1748486167921,0.8787782,2769.2,2767.7,5.581]
[1748486168247,3.61136041,2769.1,2768.4,11.61210901]
[1748486168941,1.5657,2769.3,2768.2,9.73727184]
[1748486169141,1.5657,2769.3,2768.5,8.0]
[1748486169314,3.61128164,2769.1,2767.7,3.61303598]
[1748486169512,3.61128164,2769.1,2767.3,3.61356452]
[1748486169712,3.61128164,2769.1,2767.2,8.76737184]
[1748486169713,3.61189983,2768.7,2768.0,3.61269743]
[1748486169941,3.61162331,2768.9,2767.4,3.61350003]
[1748486169942,3.61154248,2768.9,2767.4,3.61350003]
[1748486170243,1.4227,2768.9,2767.3,1.73727184]
[1748486170545,0.55,2768.8,2766.7,1.475]
[1748486170730,0.55,2768.8,2765.4,1.73334274]
[1748486170731,3.61462176,2766.6,2765.7,3.61569391]
[1748486170931,1.521,2767.4,2765.7,1.66345525]
[1748486171113,1.521,2767.4,2766.0,1.73727184]
[1748486171319,1.521,2767.4,2765.7,1.475]
[1748486171320,3.61400873,2767.1,2766.5,8.0]
[1748486171520,1.521,2767.4,2766.3,3.61492911]
[1748486171717,1.521,2767.4,2766.2,0.03807162]
[1748486171718,3.61425167,2766.9,2766.2,3.65310562]
[1748486172052,3.61388751,2767.2,2766.3,3.61493691]
[1748486172212,3.61388751,2767.2,2766.2,3.65310986]
[1748486172213,3.61392266,2767.1,2766.5,8.0]
[1748486172411,1.521,2767.4,2766.2,0.03807162]
[1748486172611,3.61440634,2766.8,2766.2,0.03807162]
[1748486173001,0.30764224,2766.7,2766.2,0.03807162]
[1748486173204,0.30126909,2766.7,2766.5,3.6145922]
[1748486173401,0.30126909,2766.7,2766.6,3.61454492]
[1748486173652,0.30126909,2766.7,2766.6,11.61454492]
[1748486175168,1.5549,2768.0,2767.9,3.61284728]
[1748486175371,1.5549,2768.0,2767.4,1.73727184]
[1748486175510,1.5549,2768.0,2767.7,3.61298073]
[1748486175715,1.5549,2768.0,2767.4,1.73727184]
[1748486176039,1.5549,2768.0,2767.1,8.0]
[1748486176209,1.5549,2768.0,2766.4,8.82656998]
[1748486176210,5.16765131,2768.0,2767.3,8.0]
[1748486176410,5.16765131,2768.0,2767.3,3.6136041]
[1748486176653,1.5549,2768.0,2767.5,3.61327377]
[1748486176871,1.5549,2768.0,2766.6,5.577]
[1748486176872,1.5549,2768.0,2767.8,3.61289764]
[1748486177160,1.5549,2768.0,2767.3,3.61363061]
[1748486177161,1.4528,2768.4,2767.6,3.6132389]
[1748486177311,1.4528,2769.1,2767.7,5.35036258]
[1748486177513,1.4528,2769.1,2768.3,3.61221766]
[1748486177913,1.4528,2769.1,2767.5,3.61336946]
[1748486177914,5.06409271,2769.1,2768.5,3.61204976]
[1748486178246,5.06409271,2769.1,2767.9,3.61278631]
[1748486178411,5.06409271,2769.1,2768.3,8.0]
[1748486178412,1.4528,2769.1,2768.3,8.0]
[1748486178610,1.4528,2769.1,2768.5,3.61197501]
[1748486178811,1.4528,2769.1,2768.6,3.61191249]
[1748486179033,1.4528,2769.1,2767.9,1.73727184]
[1748486179260,1.4528,2769.1,2768.2,8.0]
[1748486179413,1.4528,2769.1,2769.0,3.61141206]
[1748486179811,1.4706,2769.6,2768.6,8.0]
[1748486180055,1.4706,2769.6,2769.2,3.61109043]
[1748486180250,1.4706,2769.6,2769.3,3.61092065]
[1748486180453,1.4706,2769.6,2768.5,8.0]
[1748486180658,1.4706,2769.6,2768.3,1.515]
[1748486180659,3.7076,2770.1,2768.9,1.73727184]
[1748486180955,3.7076,2770.1,2769.5,3.61075538]
[1748486181150,3.7076,2770.1,2769.6,3.61062969]
[1748486181663,3.7076,2770.1,2768.9,7.31127184]
[1748486181664,1.4706,2769.2,2767.6,1.515]
[1748486181879,3.61162741,2768.9,2767.7,3.61310835]
[1748486182011,7.0436,2769.2,2767.2,1.73727184]
[1748486182216,0.70436,2769.1,2767.3,3.61363061]
[1748486182410,0.70436,2769.1,2766.4,5.21181552]
[1748486182411,4.3459,2768.9,2766.1,1.515]
[1748486182787,0.696682,2769.1,2764.9,1.72464441]
[1748486182788,3.61480624,2766.4,2766.3,0.30176864]
[1748486182910,1.4706,2766.8,2766.3,0.30176864]
[1748486183345,0.55,2766.6,2765.0,0.32710255]
[1748486183688,2.237,2766.7,2765.4,8.0]
[1748486183689,1.5497,2766.4,2765.4,8.0]
[1748486183977,1.5497,2766.4,2765.0,0.32710255]
[1748486184342,3.61496164,2766.3,2765.2,3.61635473]
[1748486184825,3.61494472,2766.3,2765.2,3.61635473]
[1748486185026,3.61494472,2766.3,2765.3,8.0]
[1748486185370,3.6149665,2766.3,2765.0,0.32710255]
[1748486185530,1.5497,2766.4,2765.0,0.32710255]
[1748486185531,5.16451053,2766.4,2765.2,3.61626879]
[1748486185732,1.5497,2766.4,2765.1,3.61650573]
[1748486186034,3.61494348,2766.3,2765.2,3.61637494]
[1748486186456,3.61494348,2766.3,2765.5,8.0]
[1748486186728,1.5497,2766.4,2765.6,3.61576601]
[1748486186937,1.5497,2766.4,2765.3,1.73727184]
[1748486187138,1.5497,2766.4,2765.0,11.94366666]
[1748486187139,1.5497,2766.4,2765.0,0.32710255]
[1748486187348,1.5153,2766.9,2766.3,3.61482923]
[1748486187584,1.5153,2766.9,2765.7,1.73727184]
[1748486187585,3.61428364,2766.8,2765.7,8.0]
[1748486187737,0.51295836,2766.7,2765.3,8.0]
[1748486187940,1.5153,2766.9,2765.6,8.0]
[1748486188171,3.61428364,2766.8,2765.3,3.61614402]
[1748486188478,3.61510034,2766.2,2765.2,8.0]
[1748486188697,3.61495453,2766.3,2765.6,8.0]
[1748486188900,6.08195836,2766.7,2765.4,8.0]
[1748486189057,6.08195836,2766.7,2765.0,0.32710255]
[1748486189058,0.55,2766.4,2765.0,0.32710255]
[1748486189258,0.55,2766.1,2765.0,0.32710255]
[1748486189599,1.5629,2765.9,2765.0,0.32710255]
[1748486189799,2.238,2765.8,2765.0,0.32710255]
[1748486190158,0.30764224,2765.7,2765.0,0.32710255]
[1748486190500,0.30764224,2765.7,2765.1,3.61638578]
[1748486190710,0.30764224,2765.7,2765.0,0.32710255]
[1748486190711,0.30764224,2765.7,2765.6,11.61585189]
[1748486190887,0.30764224,2765.7,2765.6,8.0]
[1748486191287,0.30764224,2765.7,2765.0,3.94373142]
[1748486191288,0.30764224,2765.7,2765.0,3.94370442]
[1748486191602,0.30764224,2765.7,2765.0,0.32710255]
[1748486191774,3.92342751,2765.7,2765.1,8.0]
[1748486191974,3.92342751,2765.7,2765.0,8.32710255]
[1748486192173,3.61594291,2765.6,2765.0,8.32710255]
[1748486192375,3.61647374,2765.2,2765.0,0.32710255]
[1748486192593,3.61623886,2765.4,2765.0,0.32710255]
[1748486192904,1.5173,2765.5,2765.0,0.32710255]
[1748486193062,3.61622969,2765.4,2765.0,0.32710255]
[1748486193261,1.5173,2765.5,2765.0,0.32710255]
[1748486193458,5.13337198,2765.5,2765.0,0.32710255]
[1748486193687,3.61620833,2765.4,2765.0,0.32710255]
[1748486194072,1.5173,2765.5,2765.0,0.32710255]
[1748486194296,5.13336917,2765.5,2765.0,0.32710255]
[1748486194481,3.61612361,2765.4,2765.0,0.32710255]
[1748486194682,3.61636758,2765.3,2765.0,0.32710255]
[1748486194889,3.7553,2765.5,2765.0,0.32710255]
[1748486194890,3.61619048,2765.4,2765.0,0.32710255]
[1748486195526,7.37129378,2765.5,2765.0,0.32710255]
[1748486195692,4.06294224,2765.5,2765.0,0.32710255]
[1748486196019,0.30764224,2765.4,2765.0,0.32710255]
[1748486196322,7.804,2765.3,2765.0,0.32710255]
[1748486196495,3.61650573,2765.1,2765.0,0.32710255]
[1748486197019,3.61650573,2765.1,2763.5,1.4621]
[1748486197020,1.5679,2765.0,2763.5,1.4621]
[1748486197225,3.61739081,2764.5,2763.5,1.4621]
[1748486197429,1.92955057,2765.0,2762.7,3.61957566]
[1748486197430,1.92955057,2765.0,2763.0,1.73727184]
[1748486197593,3.61781005,2764.2,2763.0,1.73727184]
[1748486197793,3.61782604,2764.1,2763.2,3.61886597]
[1748486197992,5.18453973,2765.0,2763.0,5.35640066]
[1748486197993,1.5679,2765.0,2763.5,3.61847997]
[1748486198193,3.6177075,2764.2,2763.3,3.61873406]
[1748486198515,3.6178642,2764.1,2762.9,1.73727184]
[1748486198719,3.61776583,2764.2,2762.9,1.73727184]
[1748486198720,2.239,2764.5,2762.9,1.73727184]
[1748486198919,3.61791483,2764.1,2762.9,1.73727184]
[1748486199105,2.4629,2764.5,2763.3,3.61877881]
[1748486199311,3.61794313,2764.1,2763.4,8.0]
[1748486199616,3.61783959,2764.1,2763.4,8.0]
[1748486199821,2.4629,2764.5,2763.2,8.0]
[1748486200124,2.4629,2764.5,2762.7,5.08164996]
[1748486200125,3.61853996,2763.6,2762.7,5.08164996]
[1748486200427,3.61853996,2763.6,2762.8,3.61947962]
[1748486200428,3.61848512,2763.6,2762.8,3.61947962]
[1748486200637,2.24,2763.6,2762.2,1.564]
[1748486200939,2.24,2763.6,2760.5,3.62246434]
[1748486200940,3.61931345,2763.0,2761.7,1.564]
[1748486201083,3.61931345,2763.0,2761.3,1.564]
[1748486201084,2.24,2762.9,2761.3,1.564]
[1748486201286,1.4249,2762.3,2761.3,1.564]
[1748486201535,1.4249,2762.3,2760.8,1.75279915]
[1748486201825,0.7803,2762.8,2761.1,7.2434899]
[1748486202036,3.61978037,2762.6,2761.7,3.62083984]
[1748486202213,2.24,2763.0,2761.6,3.62096045]
[1748486202214,3.62001939,2762.5,2761.6,3.62096045]
[1748486202422,2.24,2763.0,2761.3,1.73727184]
[1748486202744,3.61986864,2762.6,2761.7,3.6208564]
[1748486202910,3.62002816,2762.5,2761.6,3.62102212]
[1748486203112,3.62002816,2762.5,2760.8,3.30127184]
[1748486203113,3.6199095,2762.5,2760.8,1.564]
[1748486203438,3.62044364,2762.1,2761.2,3.62149506]
[1748486203683,1.5017,2762.0,2760.8,1.564]
[1748486203818,1.5017,2762.0,2761.3,3.6213898]
[1748486203994,3.62052098,2762.1,2761.4,3.62132712]
[1748486204190,3.62017246,2762.3,2761.6,3.62106658]
[1748486204387,1.5017,2763.3,2762.5,3.61979141]
[1748486204595,3.61901882,2763.2,2762.4,3.61993844]
[1748486204789,3.61899247,2763.2,2762.4,3.61993844]
[1748486205042,5.12056244,2763.3,2761.7,9.5304]
[1748486205043,5.1206704,2763.3,2761.7,9.5304]
[1748486205201,5.1206704,2763.3,2762.4,3.61996103]
[1748486205202,3.61920385,2763.1,2762.4,3.61996103]
[1748486205402,3.61920385,2763.1,2761.8,3.62082699]
[1748486205403,1.5017,2763.3,2762.9,3.6193524]
[1748486205602,2.24,2763.4,2763.1,3.61903622]
[1748486205838,2.24,2763.4,2762.6,5.15005418]
[1748486205839,2.24,2763.4,2762.7,3.61960142]
[1748486206044,1.5648,2764.2,2762.6,1.5304]
[1748486206249,0.30764224,2764.1,2762.8,8.0]
[1748486206551,0.30764224,2764.1,2763.3,3.61875971]
[1748486206552,3.92546663,2764.1,2763.3,3.61875971]
[1748486206707,3.92546403,2764.1,2763.4,3.61864032]
[1748486206907,3.92546403,2764.1,2763.5,11.61848089]
[1748486206908,0.30764224,2764.1,2763.5,11.61848089]
[1748486207104,0.30764224,2764.1,2761.3,2.24]
[1748486207105,0.30764224,2764.1,2763.4,8.0]
[1748486207293,0.30764224,2764.1,2762.0,3.62049377]
[1748486207294,3.61835153,2763.7,2763.1,3.61912095]
[1748486207520,0.30764224,2764.1,2761.9,1.5497]
[1748486207521,3.61879747,2763.4,2761.9,1.5497]
[1748486207836,3.61879747,2763.4,2761.3,1.73727184]
[1748486207837,0.30764224,2763.3,2761.3,1.73727184]
[1748486208040,1.5713,2762.5,2761.4,1.5497]
[1748486208195,3.62017159,2762.3,2760.9,1.5497]
[1748486208399,2.73911427,2762.4,2760.9,1.5497]
[1748486208593,2.73911427,2762.4,2759.9,3.62327829]
[1748486208594,0.55,2762.3,2760.1,1.73855054]
[1748486208839,4.9632109,2762.3,2760.8,3.62213138]
[1748486209041,4.9632109,2762.3,2760.9,3.62199783]
[1748486209042,3.62116845,2761.6,2760.9,3.62199783]
[1748486209213,1.10068155,2762.3,2761.4,3.62134148]
[1748486209412,1.5713,2762.5,2761.8,3.62081048]
[1748486209413,0.30764224,2762.2,2761.8,3.62081048]
[1748486209813,0.30764224,2762.2,2762.0,3.6205648]
[1748486210028,0.30764224,2762.2,2761.6,1.4239]
[1748486210237,0.30764224,2762.2,2762.0,3.62053809]
[1748486210400,0.30764224,2762.2,2761.8,11.62077868]
[1748486210605,0.30764224,2762.2,2761.7,3.62093949]
[1748486210821,0.30764224,2762.2,2762.0,3.6204498]
[1748486211138,3.92806052,2762.2,2761.1,5.04554495]
[1748486211440,3.92806052,2762.2,2759.2,0.2]
[1748486211441,7.04,2762.1,2761.0,3.62184596]
[1748486211736,7.04,2762.1,2760.3,1.4239]
[1748486211737,7.04,2762.1,2760.5,3.62253214]
[1748486211937,7.04,2762.1,2760.3,1.4239]
[1748486211938,5.1034849,2762.1,2761.0,3.62185381]
[1748486212097,5.1034849,2762.1,2761.0,3.6218255]
[1748486212098,2.221,2762.0,2761.0,3.6218255]
[1748486212304,2.221,2762.0,2760.3,1.4239]
[1748486212305,3.62147683,2761.4,2760.3,1.4239]
[1748486212497,2.66144483,2762.0,2760.6,3.62238886]
[1748486212498,3.62082699,2761.8,2760.6,3.62238886]
[1748486212813,3.6209679,2761.7,2760.3,1.4239]
[1748486213127,3.6209679,2761.7,2760.8,3.6221351]
[1748486213298,4.03514037,2761.9,2759.5,0.18886521]
[1748486213299,4.03522881,2761.9,2759.5,0.18886521]
[1748486213499,3.6209581,2761.7,2760.3,3.62270959]
[1748486213792,0.41444448,2761.9,2759.8,0.32710255]
[1748486213793,0.55,2761.5,2759.8,0.32710255]
[1748486213938,1.5518,2761.4,2759.8,0.32710255]
[1748486214274,3.62195652,2761.0,2759.8,0.32710255]
[1748486214477,3.6217922,2761.1,2759.8,0.32710255]
[1748486214635,5.84250053,2761.3,2760.3,3.62271267]
[1748486214838,1.5518,2761.4,2760.4,1.4486]
[1748486215074,1.5518,2761.4,2760.6,11.62231455]
[1748486215276,1.5518,2761.4,2760.4,1.4486]
[1748486215574,1.5518,2761.4,2760.0,8.0]
[1748486215575,1.85944224,2761.4,2760.3,8.0]
[1748486215784,1.85944224,2761.4,2759.8,0.32710255]
[1748486215785,0.55,2761.3,2759.8,0.32710255]
[1748486216077,3.62222043,2760.8,2759.8,3.95052997]
[1748486216375,3.62250553,2760.6,2759.8,0.32710255]
[1748486216577,3.62275324,2760.4,2759.8,0.32710255]
[1748486216877,1.5308,2761.1,2759.8,0.32710255]
[1748486216878,3.62209929,2760.9,2759.9,3.62331915]
[1748486217081,0.87747497,2760.9,2759.9,3.62331968]
[1748486217238,0.87747497,2760.9,2760.1,3.62303094]
[1748486217442,1.5308,2761.1,2759.8,0.32710255]
[1748486217640,0.30764224,2761.0,2760.2,3.62279548]
[1748486217838,0.30764224,2761.0,2760.4,8.0]
[1748486218039,0.30764224,2761.0,2760.4,11.62258216]
[1748486218676,0.30764224,2761.0,2760.5,3.62252402]
[1748486218853,0.30764224,2761.0,2760.5,3.62242345]
[1748486219049,0.30764224,2761.0,2760.8,3.62212779]
[1748486219264,0.30764224,2761.0,2760.0,9.5747]
[1748486219467,0.30764224,2761.0,2760.9,3.62200731]
[1748486219788,0.30764224,2761.0,2760.7,8.0]
[1748486219974,0.30764224,2761.0,2760.7,3.622142]
[1748486220139,0.30764224,2761.0,2760.7,8.0]
[1748486220337,0.30764224,2761.0,2760.9,3.62200731]
[1748486220767,0.30764224,2761.0,2760.2,8.0]
[1748486221078,0.30764224,2761.0,2759.4,1.4958]
[1748486221250,0.30764224,2761.0,2759.4,5.11971471]
[1748486221577,0.30764224,2761.0,2760.7,3.62219091]
[1748486222083,0.30764224,2761.0,2760.9,3.62200731]
[1748486222243,0.30764224,2761.0,2760.9,11.62200731]
[1748486223059,0.30764224,2761.0,2760.9,18.74250731]
[1748486223259,0.30764224,2761.0,2760.9,11.62200731]
[1748486223740,0.30764224,2761.0,2760.9,13.19450731]
[1748486223941,0.10764224,2761.0,2760.9,13.19450731]
[1748486224443,7.816,2762.8,2762.0,1.4242]
[1748486225052,7.816,2762.8,2762.3,8.0]
[1748486225288,7.816,2762.8,2762.7,3.61964744]
[1748486225780,3.61789722,2764.1,2762.5,3.61978025]
[1748486225781,1.4827,2763.8,2762.5,1.4242]
[1748486225949,1.4827,2763.8,2762.8,3.61951643]
[1748486226151,7.815,2764.2,2763.5,3.61847285]
[1748486226376,7.815,2764.2,2762.9,8.0]
[1748486226377,7.815,2764.2,2764.1,3.61781411]
[1748486226560,7.815,2764.2,2763.9,3.61795481]
[1748486226561,2.222,2764.5,2764.4,3.6174215]
[1748486226761,2.222,2764.5,2763.5,1.528]
[1748486226762,2.222,2764.5,2763.6,5.544]
[1748486227001,2.222,2764.5,2764.4,3.6174215]
[1748486227184,1.497,2765.2,2764.6,3.61704275]
[1748486227392,1.8689,2765.2,2764.2,3.61755606]
[1748486227576,1.8689,2765.2,2764.0,3.617945]
[1748486227908,1.8689,2765.2,2763.8,5.543]
[1748486227909,1.497,2765.2,2764.3,3.61755236]
[1748486228107,1.497,2765.2,2763.9,8.0]
[1748486228404,1.497,2765.2,2764.6,3.61706945]
[1748486228705,1.497,2765.2,2763.9,8.0]
[1748486228863,1.497,2765.2,2764.1,8.0]
[1748486229071,7.815,2765.6,2763.9,1.73727184]
[1748486229072,9.3829,2765.6,2764.8,3.61680834]
[1748486229270,9.3829,2765.6,2765.2,3.61628406]
[1748486229497,9.3829,2765.6,2764.3,3.61755065]
[1748486229498,3.61667172,2765.0,2764.3,3.6175511]
[1748486229701,3.61667172,2765.0,2763.3,1.4548]
[1748486229702,3.61674857,2765.0,2763.4,3.61873054]
[1748486229899,10.32119,2765.6,2763.8,1.73727184]
[1748486230221,2.222,2765.5,2764.9,3.61673067]
[1748486230412,2.222,2765.5,2764.5,8.0]
[1748486230413,2.222,2765.5,2765.0,3.61656413]
[1748486230763,2.222,2765.5,2764.5,3.61720017]
[1748486231076,3.6164847,2765.2,2764.2,3.61768323]
[1748486231265,3.6161134,2765.4,2762.8,3.61951643]
[1748486231266,3.61836342,2763.7,2762.8,3.61951643]
[1748486231463,0.55,2764.8,2762.9,7.27227184]
[1748486231464,3.61697975,2764.8,2762.9,7.27227184]
[1748486231690,3.61697975,2764.8,2763.1,3.61912344]
[1748486231691,3.09915471,2764.8,2763.1,3.61912344]
[1748486231889,2.221,2764.8,2762.9,7.27227184]
[1748486232089,2.221,2764.8,2763.6,3.61839639]
[1748486232308,5.83790938,2764.8,2764.2,8.0]
[1748486232524,5.83798262,2764.8,2764.2,3.61765304]
[1748486232670,3.61702962,2764.7,2764.2,8.0]
[1748486232863,5.83794689,2764.8,2764.1,3.61778852]
[1748486233104,3.32123945,2764.8,2764.0,8.0]
[1748486233311,3.32123945,2764.8,2763.9,8.0]
[1748486233312,3.32123945,2764.8,2763.8,8.0]
[1748486233610,1.4677,2765.4,2764.1,1.73727184]
[1748486233831,1.4677,2765.4,2763.9,1.486]
[1748486233832,3.61625264,2765.3,2764.6,3.6170693]
[1748486234032,3.61685995,2764.9,2764.3,3.61754032]
[1748486234203,4.48628339,2765.3,2764.7,3.61702496]
[1748486234392,5.08384049,2765.4,2764.7,3.61690313]
[1748486234592,1.4677,2765.4,2763.9,1.486]
[1748486234926,1.4677,2765.4,2764.4,3.6174215]
[1748486235137,1.4677,2765.4,2765.3,3.61624416]
[1748486235303,1.4677,2765.4,2765.2,3.6163363]
[1748486235635,1.4633,2766.2,2764.7,1.73727184]
[1748486235831,3.6843,2766.2,2765.8,3.61552885]
[1748486236059,3.6843,2766.2,2765.7,3.61567598]
[1748486236206,3.6843,2766.2,2765.9,3.61536831]
[1748486236407,3.6843,2766.2,2765.4,8.0]
[1748486236931,3.6843,2766.2,2765.7,3.61564424]
[1748486237134,3.6843,2766.2,2765.7,3.61562884]
[1748486237342,3.6843,2766.2,2765.1,8.0]
[1748486237629,3.6843,2766.2,2765.7,3.61570544]
[1748486237838,3.6843,2766.2,2765.1,3.61650573]
[1748486237839,7.29937952,2766.2,2765.6,3.6158001]
[1748486238068,5.526,2766.1,2764.3,1.555]
[1748486238215,0.55,2765.6,2763.8,1.4302]
[1748486238393,3.61641482,2765.2,2764.3,3.61749582]
[1748486238594,1.5588,2765.5,2763.8,5.0483555]
[1748486238595,3.97824078,2765.1,2764.4,3.61741355]
[1748486239047,0.36164148,2765.1,2764.2,3.61768323]
[1748486239344,0.36164148,2765.1,2763.8,5.04835381]
[1748486239345,3.61633238,2765.3,2763.8,13.04839421]
[1748486239505,3.61633238,2765.3,2764.7,3.61702219]
[1748486239702,5.1747914,2765.5,2763.8,5.04839421]
[1748486239703,1.5588,2765.5,2763.8,6.78566605]
[1748486239972,1.5588,2765.5,2765.1,3.61640702]
[1748486240251,2.6285525,2765.5,2764.0,5.523]
[1748486240467,2.6285525,2765.5,2764.4,3.61731028]
[1748486240468,3.61663702,2765.0,2764.4,3.61731028]
[1748486240603,3.61619128,2765.4,2764.8,3.61682312]
[1748486240807,2.6285525,2765.5,2764.3,3.6175093]
[1748486241042,1.5588,2765.5,2765.1,3.61640369]
[1748486241343,1.5588,2765.5,2765.1,3.6164695]
[1748486241506,1.5588,2765.5,2764.4,8.0]
[1748486241845,5.16553562,2766.0,2765.3,3.61612074]
[1748486242045,5.16553562,2766.0,2765.2,3.61637494]
[1748486242349,1.5502,2766.0,2765.1,3.61638485]
[1748486242642,1.5502,2766.0,2764.9,8.0]
[1748486242643,1.5502,2766.0,2765.4,3.61608034]
[1748486242830,1.5502,2766.0,2764.9,8.0]
[1748486243164,5.54270035,2766.0,2765.4,3.61599478]
[1748486243446,1.92732,2766.0,2765.5,3.61588438]
[1748486243960,1.5502,2766.0,2765.3,11.61619958]
[1748486244121,1.5502,2766.0,2765.2,8.0]
[1748486244447,1.5502,2766.0,2765.7,3.61564312]
[1748486245147,1.5502,2766.0,2765.9,3.6154597]
[1748486245452,2.221,2766.2,2765.1,11.6164612]
[1748486245453,2.221,2766.2,2765.5,8.03615664]
[1748486245603,2.221,2766.2,2765.5,3.61590145]
[1748486245604,3.61528744,2766.1,2765.5,3.61590145]
[1748486245809,5.83610142,2766.2,2765.6,3.61575237]
[1748486246006,2.221,2766.2,2765.1,0.3]
[1748486246245,2.221,2766.2,2765.5,3.61585464]
[1748486246246,0.2221,2766.1,2765.5,3.61585464]
[1748486246459,2.221,2766.2,2765.3,8.0]
[1748486246612,2.221,2766.2,2765.9,3.61536223]
[1748486246952,2.221,2766.2,2765.7,3.61560678]
[1748486247160,0.58359752,2766.1,2765.8,3.61558244]
[1748486247371,2.221,2766.2,2766.1,3.61519829]
[1748486247577,2.221,2766.2,2765.3,3.61619225]
[1748486247863,2.221,2766.2,2765.6,3.61576408]
[1748486248021,2.221,2766.2,2765.6,8.0]
[1748486248223,2.221,2766.2,2765.2,3.61637494]
[1748486248224,3.61544926,2766.0,2765.2,3.61637494]
[1748486248573,3.61544926,2766.0,2765.1,8.0]
[1748486248574,0.2221,2766.1,2765.6,3.61582587]
[1748486248705,0.2221,2766.1,2765.7,3.61571701]
[1748486248911,2.221,2766.2,2766.1,3.61519829]
[1748486249629,1.5164,2766.5,2766.3,3.61483172]
[1748486249946,1.5164,2766.5,2765.9,3.6154597]
[1748486249947,1.5164,2766.5,2766.4,3.61480624]
[1748486250316,2.194,2766.6,2766.5,3.61467558]
[1748486251139,2.194,2766.6,2766.4,3.6147194]
[1748486251454,7.81,2766.7,2766.4,3.6147194]
[1748486251626,7.81,2766.7,2766.6,3.61454492]
[1748486252051,7.81,2766.7,2766.1,8.0]
[1748486252052,7.81,2766.7,2766.4,3.61468821]
[1748486252254,7.81,2766.7,2766.4,3.61475417]
[1748486252967,7.81,2766.7,2766.6,3.61454492]
[1748486253151,7.81,2766.7,2766.5,11.61462806]
[1748486253332,7.81,2766.7,2766.1,3.61514694]
[1748486253663,7.81,2766.7,2766.5,3.61455041]
[1748486253822,7.81,2766.7,2766.6,3.61454492]
[1748486254217,7.81,2766.7,2766.6,11.61454492]
[1748486254945,3.6771,2767.3,2767.2,3.6137612]
[1748486255131,2.194,2767.3,2767.2,3.6137612]